bitfinex/quotes_SOLUSD_20260314
["timestamp","ask_amount","ask_price","bid_price","bid_amount"]
[1773487426660,0.47233739,86.854,86.828,11.99014576]
[1773487428764,11.51370706,86.853,86.828,11.99014576]
[1773487429069,0.49738949,86.852,86.828,11.99014576]
[1773487431275,0.46656459,86.85,86.823,11.51766014]
[1773487433968,0.46656459,86.848,86.823,11.51766014]
[1773487434474,0.46656459,86.848,86.823,11.99346216]
[1773487435166,0.46656459,86.848,86.824,0.47580202]
[1773487437968,0.46656459,86.846,86.824,0.47580202]
[1773487440262,0.46656459,86.846,86.826,0.47580202]
[1773487441674,0.46656459,86.846,86.827,11.5171548]
[1773487441872,0.46656459,86.846,86.828,0.47580202]
[1773487446069,0.46656459,86.844,86.818,0.47580202]
[1773487447483,0.46656459,86.844,86.819,0.47580202]
[1773487448277,0.46656459,86.844,86.821,0.47580202]
[1773487449776,0.46656459,86.844,86.822,11.51781806]
[1773487449984,0.46656459,86.844,86.823,0.47580202]
[1773487451681,0.46656459,86.844,86.824,11.51755275]
[1773487451888,0.46656459,86.844,86.825,0.47580202]
[1773487459688,0.46656459,86.848,86.827,0.47580202]
[1773487461185,0.46661157,86.879,86.829,0.404807]
[1773487461487,0.46661157,86.879,86.841,0.404807]
[1773487461670,0.46661157,86.869,86.841,0.404807]
[1773487461870,0.46661157,86.869,86.842,11.51516547]
[1773487462282,0.46661157,86.869,86.843,0.404807]
[1773487463692,0.46661157,86.859,86.84,0.404807]
[1773487465392,0.46661157,86.859,86.842,0.404807]
[1773487465585,0.46661157,86.869,86.842,0.404807]
[1773487467791,0.46661157,86.869,86.843,11.51503287]
[1773487467973,0.46661157,86.869,86.844,0.404807]
[1773487470872,0.46661157,86.869,86.845,11.91957468]
[1773487472380,0.46661157,86.869,86.846,0.404807]
[1773487475391,0.46661157,86.869,86.847,11.51450251]
[1773487480606,0.46661157,86.869,86.848,0.404807]
[1773487482898,0.46661157,86.869,86.849,11.51423735]
[1773487490405,0.46661157,86.869,86.85,0.404807]
[1773487492603,0.46661157,86.869,86.851,11.5139722]
[1773487493607,0.4907339,86.874,86.852,0.404807]
[1773487494007,0.4907339,86.874,86.854,0.404807]
[1773487498413,0.1,86.88,86.856,0.404807]
[1773487499290,0.1,86.88,86.861,0.404807]
[1773487499489,0.1,86.88,86.86,3.7609723]
[1773487499490,0.1,86.88,86.863,0.404807]
[1773487501613,0.1,86.88,86.865,0.404807]
[1773487503618,0.1,86.88,86.867,0.404807]
[1773487507399,0.1,86.88,86.868,11.51171892]
[1773487507609,0.1,86.88,86.869,0.404807]
[1773487509920,0.1,86.88,86.871,0.404807]
[1773487511407,0.1,86.89,86.873,0.404807]
[1773487512421,0.1,86.89,86.875,0.404807]
[1773487512799,0.1,86.91,86.881,0.48976261]
[1773487513120,0.1,86.91,86.891,0.48976261]
[1773487513710,0.1,86.92,86.901,0.48976261]
[1773487514915,0.1,86.92,86.903,0.48976261]
[1773487515918,0.1,86.92,86.905,0.48976261]
[1773487516126,0.1,86.92,86.886,7.34]
[1773487516127,0.4907339,86.919,86.879,0.48976261]
[1773487516300,3.75751609,86.91,86.879,0.48976261]
[1773487516504,0.4907339,86.909,86.88,11.51012891]
[1773487521221,11.50642058,86.908,86.88,0.4828609]
[1773487521423,0.49826325,86.907,86.88,0.4828609]
[1773487522425,11.50468383,86.908,86.88,0.4828609]
[1773487524020,10.50468383,86.908,86.881,11.50999643]
[1773487524227,0.49826325,86.907,86.882,0.4828609]
[1773487528124,0.49826325,86.905,86.882,0.4828609]
[1773487532315,0.49826325,86.905,86.884,0.4828609]
[1773487534837,0.49826325,86.905,86.871,28.77800869]
[1773487534838,0.49826325,86.905,86.886,0.4828609]
[1773487536931,0.49826325,86.913,86.887,11.5092016]
[1773487537135,0.49826325,86.917,86.888,0.4828609]
[1773487538438,0.49826325,86.917,86.89,0.4828609]
[1773487541447,0.49826325,86.917,86.892,0.4828609]
[1773487543628,0.49826325,86.917,86.894,0.4828609]
[1773487545042,0.49826325,86.917,86.895,11.50814201]
[1773487545242,0.49826325,86.917,86.896,0.4828609]
[1773487547830,0.49826325,86.917,86.878,28.7759737]
[1773487548035,0.49826325,86.909,86.878,28.7759737]
[1773487549036,0.49826325,86.909,86.88,3.75751609]
[1773487549441,0.47117789,86.918,86.89,3.75751609]
[1773487549833,0.47117789,86.918,86.892,11.50853933]
[1773487550148,0.47117789,86.918,86.893,0.49537872]
[1773487551939,0.47117789,86.918,86.895,0.47715051]
[1773487554450,0.47117789,86.918,86.897,0.47715051]
[1773487557443,0.47117789,86.918,86.898,11.50774471]
[1773487557632,0.47117789,86.918,86.899,0.47715051]
[1773487566499,0.47117789,86.918,86.901,0.47715051]
[1773487567998,0.47117789,86.918,86.903,0.47715051]
[1773487569196,0.1,86.92,86.903,0.47715051]
[1773487569974,0.5514449,86.92,86.903,0.47715051]
[1773487570394,0.1,86.92,86.903,0.47715051]
[1773487573485,0.5514449,86.92,86.903,0.47715051]
[1773487573800,0.5514449,86.92,86.905,0.47715051]
[1773487575905,0.1,86.92,86.905,0.47715051]
[1773487576885,0.5514449,86.92,86.905,0.47715051]
[1773487580389,0.1,86.92,86.905,0.47715051]
[1773487580708,0.1,86.93,86.901,0.47715051]
[1773487582594,0.45482091,86.929,86.901,0.47715051]
[1773487582800,0.45482091,86.929,86.903,0.49504292]
[1773487583913,0.45482091,86.929,86.902,11.50721502]
[1773487584505,0.45482091,86.929,86.902,12.00225794]
[1773487585007,0.45482091,86.927,86.903,0.49504292]
[1773487587913,0.45482091,86.925,86.904,0.49504292]
[1773487589305,0.45482091,86.925,86.905,11.50681778]
[1773487589513,0.45482091,86.925,86.906,0.49504292]
[1773487591108,0.45482091,86.925,86.908,0.49504292]
[1773487603617,0.1,86.93,86.91,0.49504292]
[1773487604326,0.45482091,86.943,86.911,0.49504292]
[1773487604524,0.45482091,86.941,86.911,0.49504292]
[1773487605831,0.45482091,86.939,86.913,0.49504292]
[1773487607310,0.45482091,86.939,86.915,0.49504292]
[1773487608930,0.45482091,86.939,86.916,11.50536149]
[1773487609229,0.45482091,86.939,86.917,0.49544137]
[1773487609831,11.50218541,86.94,86.917,0.49544137]
[1773487611126,11.50218541,86.94,86.919,0.49538154]
[1773487613733,11.50218541,86.94,86.918,11.50509675]
[1773487613935,0.48036469,86.953,86.92,3.75525824]
[1773487614231,0.48036469,86.958,86.921,0.49538154]
[1773487619038,0.48036469,86.956,86.923,0.49538154]
[1773487619946,0.48036469,86.956,86.931,0.49538154]
[1773487620749,0.1,86.96,86.931,0.49538154]
[1773487621126,0.1,86.96,86.933,0.49538154]
[1773487621927,0.48036469,86.959,86.933,0.49538154]
[1773487622131,0.48036469,86.959,86.935,0.49538154]
[1773487623048,0.1,86.96,86.935,0.49538154]
[1773487623538,0.1,86.96,86.941,0.49538154]
[1773487624745,0.1,86.96,86.942,0.49538154]
[1773487625142,0.58036469,86.96,86.942,0.49538154]
[1773487626633,0.1,86.97,86.944,0.49538154]
[1773487629027,0.1,86.97,86.945,11.50152395]
[1773487629242,0.1,86.97,86.946,0.49538154]
[1773487629754,0.1,86.97,86.951,0.49538154]
[1773487630130,0.58036469,86.97,86.951,0.49538154]
[1773487636550,0.58036469,86.97,86.952,11.50059803]
[1773487636855,0.58036469,86.97,86.953,0.49538154]
[1773487639059,45.96127721,87.03,86.938,7.34]
[1773487639060,0.48036469,86.978,86.956,0.49538154]
[1773487639353,0.48036469,86.985,86.956,0.49538154]
[1773487641147,0.48036469,86.983,86.96,3.75128688]
[1773487641346,11.49464924,86.997,86.961,0.48686689]
[1773487641546,0.46322991,86.996,86.961,0.48686689]
[1773487643059,11.4949135,86.995,86.962,11.49927554]
[1773487643258,0.46322991,86.994,86.963,0.48686689]
[1773487645970,0.46322991,86.992,86.965,0.48686689]
[1773487648056,0.46322991,86.992,86.967,0.48686689]
[1773487650665,0.46322991,86.992,86.96,3.75128688]
[1773487650666,0.46322991,86.992,86.969,0.48686689]
[1773487651168,3.85128688,87.0,86.968,11.4984822]
[1773487651169,0.46322991,86.996,86.971,0.48686689]
[1773487653373,0.56322991,87.0,86.973,0.48686689]
[1773487655874,0.46322991,86.989,86.963,7.34]
[1773487656080,0.46322991,86.969,86.938,0.48686689]
[1773487656264,0.46322991,86.959,86.924,0.48686689]
[1773487656467,0.46322991,86.949,86.924,0.48686689]
[1773487657574,0.46322991,86.949,86.925,11.50417026]
[1773487658474,0.46322991,86.949,86.925,11.99103715]
[1773487658870,0.46322991,86.947,86.92,11.50470388]
[1773487659176,0.46322991,86.947,86.844,34.61]
[1773487659177,0.46322991,86.929,86.904,11.99381708]
[1773487659769,0.46322991,86.929,86.905,0.48686689]
[1773487661083,0.46322991,86.929,86.907,0.48686689]
[1773487666588,0.46322991,86.929,86.908,11.99328747]
[1773487666995,0.46322991,86.928,86.908,0.48686689]
[1773487668491,0.46322991,86.928,86.908,11.99328747]
[1773487668690,0.46322991,86.928,86.909,0.47307024]
[1773487670892,0.46322991,86.928,86.909,11.50628179]
[1773487671574,0.46322991,86.928,86.91,0.4825888]
[1773487676998,0.46322991,86.928,86.912,0.4825888]
[1773487678404,3.75128688,86.95,86.921,0.4825888]
[1773487678705,11.50044518,86.954,86.921,0.4825888]
[1773487678706,0.48567394,86.939,86.921,0.4825888]
[1773487679078,0.48567394,86.939,86.901,0.4825888]
[1773487679286,0.48567394,86.929,86.904,11.50694811]
[1773487679601,0.48567394,86.929,86.905,0.4825888]
[1773487679911,3.75128688,86.94,86.905,0.4825888]
[1773487680407,11.50099483,86.949,86.911,0.4825888]
[1773487681482,11.50099483,86.949,86.913,0.4825888]
[1773487682020,0.25193791,86.939,86.912,11.50589101]
[1773487682311,0.25193791,86.939,86.912,11.98847981]
[1773487683617,11.50245002,86.938,86.913,0.4825888]
[1773487684005,0.25193791,86.937,86.913,0.4825888]
[1773487685417,0.25193791,86.937,86.895,28.77006028]
[1773487685418,0.25193791,86.955,86.92,3.75128688]
[1773487685596,0.25193791,86.96,86.921,0.4825888]
[1773487685920,11.49924788,86.963,86.931,0.4825888]
[1773487686301,11.75118579,86.963,86.931,0.4825888]
[1773487686615,0.25193791,86.962,86.931,0.4825888]
[1773487688196,0.25193791,86.962,86.933,0.4825888]
[1773487689509,0.25193791,86.962,86.934,11.50297927]
[1773487689714,0.25193791,86.962,86.935,0.4825888]
[1773487689906,3.75189766,86.96,86.935,0.4825888]
[1773487690611,0.25193791,86.959,86.935,0.4825888]
[1773487692310,0.25193791,86.959,86.937,0.4825888]
[1773487692897,0.25193791,86.968,86.937,0.4825888]
[1773487694318,7.34,86.985,86.937,0.4825888]
[1773487694319,0.1,87.0,86.937,0.4825888]
[1773487694502,0.25193791,86.989,86.951,0.4825888]
[1773487697725,0.25193791,86.979,86.953,0.4825888]
[1773487699621,0.25193791,86.979,86.955,0.4825888]
[1773487700199,0.25193791,86.998,86.961,0.4825888]
[1773487700801,0.25193791,86.998,86.971,0.4825888]
[1773487701596,0.25193791,86.996,86.971,0.4825888]
[1773487703728,11.49464924,86.997,86.971,0.4825888]
[1773487703729,11.4949135,86.995,86.971,0.4825888]
[1773487703903,11.4949135,86.995,86.942,2.95506722]
[1773487703904,0.25193791,86.989,86.952,0.46748694]
[1773487704217,0.25193791,86.989,86.944,28.75394534]
[1773487704218,0.25193791,86.979,86.954,0.46748694]
[1773487706605,11.49707749,86.979,86.955,11.50020125]
[1773487706918,0.25193791,86.978,86.956,0.46748694]
[1773487707518,11.49707749,86.979,86.941,7.34]
[1773487707519,0.4527593,86.969,86.941,7.34]
[1773487707706,0.4527593,86.969,86.942,11.50192082]
[1773487709113,0.4527593,86.967,86.941,7.34]
[1773487709618,0.4527593,86.967,86.942,0.46748694]
[1773487711011,0.4527593,86.967,86.944,0.46748694]
[1773487712118,0.4527593,86.967,86.946,0.46748694]
[1773487714328,0.4527593,86.967,86.948,0.46748694]
[1773487715625,0.4527593,86.967,86.95,0.46748694]
[1773487717128,0.4527593,86.973,86.95,0.46748694]
[1773487719811,0.4527593,86.994,86.961,0.46748694]
[1773487723247,0.4527593,86.994,86.962,11.49927554]
[1773487723421,0.4527593,86.994,86.963,0.46748694]
[1773487726131,0.4527593,86.994,86.965,0.46748694]
[1773487726719,11.49517777,86.993,86.965,0.46748694]
[1773487727016,0.4527593,86.992,86.965,0.46748694]
[1773487728246,0.4527593,86.99,86.966,11.49874663]
[1773487728425,0.4527593,86.989,86.966,11.49874663]
[1773487728741,0.4527593,86.989,86.966,11.96590845]
[1773487728927,0.4527593,86.989,86.96,0.46716182]
[1773487729445,0.4527593,86.989,86.952,0.46716182]
[1773487732241,0.49618767,86.987,86.954,0.49885976]
[1773487735049,0.49618767,86.985,86.956,0.49885976]
[1773487738136,0.49618767,86.983,86.958,0.49885976]
[1773487739231,0.49618767,86.983,86.957,11.49993675]
[1773487740137,0.49618767,86.983,86.957,11.99879651]
[1773487740440,0.49618767,86.983,86.961,0.49885976]
[1773487743452,0.49618767,86.983,86.961,11.49940778]
[1773487747358,0.49618767,86.983,86.961,11.99826754]
[1773487751262,0.49618767,86.983,86.963,11.49914331]
[1773487751470,0.49618767,86.983,86.963,11.99800307]
[1773487752269,0.49618767,86.983,86.964,0.49885976]
[1773487754059,0.49618767,86.983,86.963,11.49914331]
[1773487756670,0.49618767,86.983,86.963,11.99800307]
[1773487757374,0.49618767,86.983,86.964,0.49885976]
[1773487760178,0.49618767,86.981,86.964,0.49885976]
[1773487760374,0.49618767,86.981,86.96,3.74904476]
[1773487760974,0.49618767,86.981,86.96,4.24790452]
[1773487761173,0.49618767,86.981,86.96,4.22129464]
[1773487762962,0.49618767,86.981,86.961,0.47224988]
[1773487763463,0.48191661,86.985,86.962,0.47224988]
[1773487763660,0.48191661,86.985,86.961,11.49930978]
[1773487765183,0.48191661,86.983,86.961,11.49930978]
[1773487767683,0.48191661,86.983,86.96,0.47224988]
[1773487768984,0.48191661,86.983,86.96,4.22129464]
[1773487769882,0.48191661,86.983,86.961,11.49940778]
[1773487770084,0.48191661,86.981,86.96,0.47224988]
[1773487771791,0.48191661,86.979,86.956,0.47224988]
[1773487771968,0.48191661,86.979,86.96,3.74904476]
[1773487772167,0.48191661,86.979,86.96,4.22129464]
[1773487774089,0.48191661,86.977,86.948,0.47224988]
[1773487774264,0.48191661,86.977,86.937,28.75630738]
[1773487774265,0.48191661,86.977,86.942,0.47224988]
[1773487776894,0.48191661,86.959,86.927,0.47224988]
[1773487777779,0.48191661,86.959,86.931,0.47224988]
[1773487778872,11.4998045,86.958,86.932,11.50324391]
[1773487779079,0.48191661,86.957,86.933,0.47224988]
[1773487782386,0.48191661,86.949,86.921,0.47224988]
[1773487784782,0.48191661,86.949,86.92,15.25385858]
[1773487784783,0.48191661,86.949,86.923,0.47224988]
[1773487785301,0.48191661,86.947,86.923,0.47224988]
[1773487787975,0.48191661,86.953,86.93,3.74904476]
[1773487788180,0.48191661,86.953,86.931,0.47224988]
[1773487788998,11.50035485,86.954,86.931,0.47224988]
[1773487792098,11.50035485,86.954,86.932,11.50324391]
[1773487792295,11.50035485,86.954,86.933,0.47694713]
[1773487792495,0.45302773,86.969,86.941,0.47694713]
[1773487794007,0.45302773,86.949,86.921,0.47694713]
[1773487796397,11.50101281,86.949,86.922,11.50456731]
[1773487796611,0.45302773,86.948,86.923,0.47694713]
[1773487799196,0.45302773,86.948,86.925,0.47694713]
[1773487799503,103.4,86.967,86.931,0.47694713]
[1773487799504,0.45302773,86.966,86.931,0.47694713]
[1773487800507,0.45302773,86.965,86.933,0.47694713]
[1773487801106,0.45302773,86.949,86.921,0.47694713]
[1773487802507,0.45302773,86.949,86.923,0.47694713]
[1773487803214,0.45302773,86.948,86.923,0.47694713]
[1773487804795,0.45302773,86.946,86.923,0.47694713]
[1773487807222,0.45302773,86.944,86.923,0.47694713]
[1773487812220,0.45302773,86.942,86.905,28.76698595]
[1773487812522,11.50178852,86.943,86.9,3.75304015]
[1773487812523,0.45302773,86.939,86.9,3.75304015]
[1773487813422,0.45302773,86.929,86.897,11.50787714]
[1773487814306,0.45302773,86.927,86.901,0.47694713]
[1773487816524,0.45302773,86.927,86.903,0.47694713]
[1773487816714,0.45302773,86.925,86.903,0.47694713]
[1773487817830,28.75381786,86.945,86.905,0.47694713]
[1773487818028,0.45302773,86.944,86.911,0.47694713]
[1773487823963,3.75304015,86.94,86.911,0.47694713]
[1773487824171,0.45574146,86.939,86.911,0.47694713]
[1773487824664,0.45574146,86.939,86.901,0.49019739]
[1773487824873,0.45574146,86.929,86.902,0.49019739]
[1773487826066,0.45574146,86.927,86.904,0.49019739]
[1773487828151,0.45574146,86.925,86.904,0.49019739]
[1773487831772,0.45574146,86.923,86.904,0.49019739]
[1773487834892,0.45574146,86.921,86.904,0.49019739]
[1773487844379,0.45574146,86.929,86.904,0.49019739]
[1773487844582,0.45574146,86.943,86.911,0.49019739]
[1773487844774,3.75304015,86.93,86.898,0.49019739]
[1773487845082,0.45574146,86.929,86.898,0.49019739]
[1773487845885,0.45574146,86.927,86.9,0.49019739]
[1773487846085,0.45574146,86.919,86.896,0.49019739]
[1773487849385,0.45715016,86.917,86.896,0.49019739]
[1773487850478,0.45715016,86.917,86.892,0.46129627]
[1773487851676,0.45715016,86.917,86.881,28.77483465]
[1773487851677,0.498923,86.915,86.889,0.46863431]
[1773487853393,3.75304015,86.92,86.891,0.46863431]
[1773487853394,11.50562625,86.914,86.891,0.46863431]
[1773487853586,0.498923,86.913,86.891,0.46863431]
[1773487854891,0.498923,86.911,86.891,0.46863431]
[1773487859990,12.00507879,86.91,86.891,0.46863431]
[1773487860385,0.498923,86.909,86.891,0.46863431]
[1773487864201,0.498923,86.907,86.891,0.46863431]
[1773487867202,0.498923,86.919,86.893,0.46863431]
[1773487867703,11.50509675,86.918,86.893,0.46863431]
[1773487867901,12.00401975,86.918,86.893,0.46863431]
[1773487868198,11.50509675,86.918,86.893,0.46863431]
[1773487868403,0.498923,86.917,86.893,0.46863431]
[1773487871710,12.00428449,86.916,86.893,0.46863431]
[1773487872111,0.498923,86.915,86.893,0.46863431]
[1773487876311,0.498923,86.915,86.895,0.46863431]
[1773487876703,12.00454925,86.914,86.895,0.46863431]
[1773487877500,11.50562625,86.914,86.895,0.46863431]
[1773487877707,0.498923,86.913,86.895,0.46863431]
[1773487878416,12.00481401,86.912,86.895,0.46863431]
[1773487881227,0.49873459,86.911,86.89,3.75562319]
[1773487883422,0.49873459,86.911,86.892,0.33499371]
[1773487888726,0.49873459,86.917,86.894,0.33499371]
[1773487891733,0.49873459,86.915,86.895,0.33499371]
[1773487891921,0.49873459,86.915,86.89,3.75562319]
[1773487892425,0.49873459,86.909,86.883,11.50961518]
[1773487892633,11.50536149,86.916,86.877,2.60161501]
[1773487892634,0.5,86.899,86.877,2.60161501]
[1773487892817,0.5,86.899,86.87,0.2]
[1773487893014,0.49873459,86.889,86.87,0.2]
[1773487893819,0.49873459,86.888,86.87,0.2]
[1773487913148,0.48634213,86.886,86.87,0.2]
[1773487913537,0.48634213,86.879,86.87,0.2]
[1773487919951,0.48634213,86.877,86.86,7.54]
[1773487920144,0.48634213,86.869,86.85,0.2]
[1773487920338,0.48634213,86.869,86.833,28.79064276]
[1773487920339,0.48634213,86.859,86.834,11.51622636]
[1773487920543,0.48634213,86.859,86.835,0.47247556]
[1773487922453,0.48634213,86.859,86.837,0.47247556]
[1773487923435,0.48634213,86.859,86.841,0.47247556]
[1773487925357,11.51052637,86.877,86.851,0.47247556]
[1773487925541,11.9968685,86.877,86.851,0.47247556]
[1773487925741,0.48634213,86.876,86.851,0.47247556]
[1773487926451,0.48634213,86.876,86.853,0.47247556]
[1773487927960,11.50999189,86.882,86.86,3.75562319]
[1773487928147,11.50999189,86.882,86.861,0.47247556]
[1773487928855,0.48634213,86.881,86.861,0.47247556]
[1773487931264,0.48634213,86.899,86.863,0.47247556]
[1773487931561,0.48634213,86.899,86.871,0.47247556]
[1773487933673,11.50774471,86.898,86.873,0.47247556]
[1773487933963,103.88634213,86.902,86.873,0.47247556]
[1773487934148,0.48634213,86.901,86.873,0.47247556]
[1773487935663,0.48634213,86.9,86.875,0.47247556]
[1773487942568,0.48634213,86.9,86.877,0.4606825]
[1773487943769,0.48634213,86.9,86.879,0.4606825]
[1773487946364,0.48634213,86.9,86.881,0.4606825]
[1773487954772,0.48437131,86.905,86.883,0.4606825]
[1773487954965,0.48437131,86.909,86.883,0.4606825]
[1773487959573,0.48437131,86.907,86.885,0.4606825]
[1773487960075,28.76141828,86.922,86.885,0.4606825]
[1773487960076,11.50583727,86.913,86.885,0.4606825]
[1773487960574,0.48437131,86.916,86.885,0.4606825]
[1773487960874,0.48437131,86.914,86.885,0.4606825]
[1773487963474,0.48437131,86.914,86.887,0.4606825]
[1773487965177,0.48437131,86.912,86.887,0.4606825]
[1773487965377,0.48437131,86.909,86.881,0.4606825]
[1773487965880,0.48437131,86.918,86.885,0.4606825]
[1773487967373,0.48437131,86.909,86.884,11.50959827]
[1773487967678,0.48437131,86.909,86.885,0.4606825]
[1773487969278,0.48437131,86.909,86.886,11.50933406]
[1773487969582,0.48437131,86.909,86.886,11.98121129]
[1773487970481,0.48437131,86.909,86.887,0.47187723]
[1773487972280,0.48437131,86.909,86.889,0.49171773]
[1773487972871,11.50614152,86.911,86.889,0.49171773]
[1773487973265,0.45971351,86.913,86.889,0.49171773]
[1773487974295,0.45971351,86.913,86.891,0.49171773]
[1773487980588,0.45971351,86.913,86.893,0.49171773]
[1773487982990,0.45971351,86.918,86.895,0.49171773]
[1773487984094,0.45971351,86.923,86.897,0.49171773]
[1773487985678,0.45971351,86.923,86.899,0.49171773]
[1773487985883,0.45971351,86.921,86.901,0.49171773]
[1773487986083,0.45971351,86.921,86.898,11.50774471]
[1773487986586,0.45971351,86.921,86.899,0.49171773]
[1773487986792,0.45971351,86.921,86.894,11.50825496]
[1773487987091,0.45971351,86.921,86.895,0.49171773]
[1773487989681,0.45971351,86.919,86.895,0.49171773]
[1773487992093,0.45971351,86.917,86.881,11.50999643]
[1773487992394,0.45971351,86.909,86.882,0.49171773]
[1773487994093,0.45971351,86.907,86.884,0.49171773]
[1773487996293,11.50668538,86.906,86.884,0.49171773]
[1773487996595,0.45971351,86.905,86.884,0.49171773]
[1773487997880,0.45971351,86.905,86.878,0.49171773]
[1773487998194,11.50668538,86.906,86.834,0.49171773]
[1773487998195,0.45971351,86.889,86.834,0.49171773]
[1773487998396,0.45971351,86.859,86.831,12.00826057]
[1773487998588,0.45971351,86.859,86.831,0.49171773]
[1773487998899,0.45971351,86.859,86.827,11.51713374]
[1773487999600,0.45971351,86.857,86.83,0.69171773]
[1773487999979,0.45971351,86.857,86.831,0.49171773]
[1773488001382,0.46527482,86.855,86.831,0.49171773]
[1773488001578,0.46527482,86.859,86.833,0.47199361]
[1773488005397,0.46527482,86.859,86.835,0.47199361]
[1773488006295,0.46527482,86.859,86.837,0.47199361]
[1773488006786,0.46527482,86.859,86.836,11.51596112]
[1773488009219,0.46527482,86.858,86.836,11.51596112]
[1773488010515,0.46527482,86.858,86.835,0.47199361]
[1773488011698,0.46527482,86.858,86.837,0.47199361]
[1773488013815,0.46527482,86.858,86.838,11.9876895]
[1773488015017,0.46527482,86.858,86.838,11.51569589]
[1773488015716,0.46527482,86.858,86.839,0.47199361]
[1773488017433,0.46527482,86.858,86.84,11.51543067]
[1773488018118,0.46527482,86.858,86.841,0.47199361]
[1773488027011,0.46527482,86.858,86.832,0.47199361]
[1773488027528,0.46527482,86.849,86.83,0.2]
[1773488032029,0.46527482,86.849,86.831,0.48827771]
[1773488035929,0.46527482,86.849,86.83,11.71671761]
[1773488043733,0.46527482,86.849,86.831,0.48827771]
[1773488044723,3.75512214,86.86,86.831,0.48827771]
[1773488046238,11.51291173,86.859,86.833,0.48827771]
[1773488046940,0.49755043,86.858,86.833,0.48827771]
[1773488049644,0.49755043,86.856,86.833,0.48827771]
[1773488053848,0.49755043,86.856,86.835,0.48827771]
[1773488054850,0.49755043,86.854,86.835,0.48827771]
[1773488059246,0.49755043,86.849,86.83,0.2]
[1773488059451,0.49755043,86.847,86.83,0.2]
[1773488061148,0.49755043,86.847,86.83,0.6994651]
[1773488061959,0.45013605,86.845,86.83,0.2]
[1773488064557,0.45013605,86.845,86.83,0.6994651]
[1773488067357,0.45013605,86.845,86.831,0.4994651]
[1773488069355,0.45013605,86.845,86.821,11.51795072]
[1773488070147,0.45013605,86.862,86.821,40.31282753]
[1773488070466,0.45013605,86.859,86.821,40.31282753]
[1773488070639,0.45013605,86.859,86.821,11.51795072]
[1773488070841,0.45013605,86.849,86.821,11.51795072]
[1773488071246,11.51436993,86.848,86.821,11.51795072]
[1773488071448,0.45013605,86.839,86.821,11.51795072]
[1773488072365,0.45013605,86.839,86.821,12.01741582]
[1773488072857,0.45013605,86.839,86.822,0.4994651]
[1773488079871,0.45013605,86.86,86.83,3.76128818]
[1773488080051,0.45013605,86.859,86.831,0.4994651]
[1773488080664,11.51264664,87.072,86.851,0.4994651]
[1773488080665,0.45013605,86.872,86.851,0.4994651]
[1773488080868,0.45013605,86.887,86.861,0.4994651]
[1773488081064,11.51026139,86.879,86.861,0.4994651]
[1773488081369,0.45013605,86.869,86.824,0.4994651]
[1773488081572,0.45013605,86.849,86.824,0.4994651]
[1773488082069,0.45013605,86.849,86.826,0.4994651]
[1773488086273,0.45013605,86.849,86.827,11.5171548]
[1773488086471,0.45013605,86.849,86.828,0.4994651]
[1773488088560,0.45013605,86.849,86.816,7.34]
[1773488088561,0.45013605,86.849,86.83,0.4524381]
[1773488091560,0.45013605,86.849,86.831,11.51662424]
[1773488091880,0.45013605,86.849,86.832,0.46538662]
[1773488094882,0.45013605,86.849,86.833,11.51635898]
[1773488095364,0.45013605,86.849,86.833,11.9817456]
[1773488099784,11.51317431,86.858,86.821,28.79466622]
[1773488099785,0.46630609,86.865,86.834,0.46538662]
[1773488099991,0.46630609,86.87,86.841,0.46538662]
[1773488103592,0.46630609,86.859,86.831,0.46538662]
[1773488104473,0.46630609,86.859,86.832,0.46538662]
[1773488104894,0.46630609,86.859,86.833,11.9817456]
[1773488105187,0.46630609,86.859,86.833,11.51635898]
[1773488106693,0.46630609,86.839,86.82,0.2]
[1773488106994,0.46630609,86.839,86.822,11.51771219]
[1773488107372,0.46630609,86.839,86.82,0.2]
[1773488109982,0.46630609,86.839,86.82,0.66538662]
[1773488110595,0.46630609,86.839,86.821,11.51795072]
[1773488110795,0.46630609,86.839,86.822,0.46538662]
[1773488110997,0.46630609,86.843,86.821,11.51795072]
[1773488114206,103.4,86.87,86.8,1e-08]
[1773488114207,0.46630609,86.829,86.8,1e-08]
[1773488114388,0.46630609,86.809,86.773,28.81067546]
[1773488114998,0.46630609,86.809,86.785,11.52262657]
[1773488115200,0.46630609,86.809,86.79,11.7220635]
[1773488118001,0.46630609,86.809,86.791,0.3004231]
[1773488118295,0.46630609,86.809,86.792,11.52179924]
[1773488118796,3.76217475,86.83,86.793,0.46538662]
[1773488119189,3.76217475,86.83,86.8,3.76217475]
[1773488119390,3.76217475,86.83,86.801,0.46538662]
[1773488119786,11.5172055,86.827,86.803,0.46538662]
[1773488120795,0.46630609,86.826,86.803,0.46538662]
[1773488120993,0.46630609,86.849,86.811,0.46538662]
[1773488121194,0.46630609,86.848,86.811,0.46538662]
[1773488123495,0.4771408,86.846,86.813,0.4535593]
[1773488123690,0.4771408,86.852,86.83,3.76217475]
[1773488123898,12.23411746,86.858,86.831,0.4535593]
[1773488124506,12.71125826,86.858,86.831,0.4535593]